Cogmind - Beta 14 @@@ ROGUE MODE // 2024.08.13 @ 21:42:05 Player: Darcyisverycute Result: Self-destructed Performance ------------- Evolutions (1) 500 Regions Visited (4) 800 Robots Destroyed (24) 120 Value Destroyed (605) 605 Prototype IDs (0) 0 Alien Tech Used (0) 0 Bonus (8) 8 TOTAL SCORE: 2033 Bonus ------- High Alert Combat Kills 8 Cogmind --------- Core Integrity 138/400 Matter 230/300 Energy 238/250 System Corruption 15% Temperature Cool (30) Movement Treading (240) Ox1 Location -9/Exiles Parts ------- > --- POWER (1) -------- Ion Engine > --- PROPULSION (3) --- Improved Treads Aluminum Leg > --- UTILITY (3) ------ Large Storage Unit Signal Interpreter Light Armor Plating > --- WEAPON (2) ------- Minigun Minigun > --- INVENTORY (15) --- Ion Engine Wheel Hover Unit Small Storage Unit Minigun Minigun Datajack Peak State ------------ > --- POWER ------------ Ion Engine > --- PROPULSION ------- Improved Treads Aluminum Leg Aluminum Leg > --- UTILITY ---------- Large Storage Unit Signal Interpreter Light Armor Plating > --- WEAPON ----------- Minigun Minigun > --- INVENTORY -------- Ion Engine Wheel Hover Unit Small Storage Unit Minigun Minigun Datajack [Rating: 15] Favorites ----------- Power Ion Engine Engine Ion Engine Power Core Light Nuclear Core Propulsion Aluminum Leg Treads Improved Treads Leg Aluminum Leg Utility Small Storage Unit Device Improved Terrain Scanner Storage Small Storage Unit Processor Signal Interpreter Hackware Hacking Suite Protection Weapon Shielding Weapon Light Assault Rifle Energy Gun Medium Laser Ballistic Gun Light Assault Rifle Build | -11 -10 -9 -9 -9 ------- Run | Yrd Mat Mat Min Exi Slots Evolved 2 | . . 2 . . Power . | . . . . . Propulsion 1 | . . 1 . . Utility 1 | . . 1 . . Weapon . | . . . . . Parts Attached 28 | 7 3 7 7 4 Power 4 | 1 1 1 1 . Engine 3 | 1 . 1 1 . Core 1 | . 1 . . . Reactor . | . . . . . Propulsion 9 | 2 1 2 4 . Treads 2 | . . . 2 . Leg 7 | 2 1 2 2 . Wheel . | . . . . . Hover . | . . . . . Flight . | . . . . . Utility 7 | 2 1 1 1 2 Device 1 | 1 . . . . Storage 2 | 1 . . . 1 Processor 1 | . . . 1 . Hackware 1 | . 1 . . . Protection 2 | . . 1 . 1 Artifact . | . . . . . Weapon 8 | 2 . 3 1 2 Energy Gun 2 | 2 . . . . Energy Cannon . | . . . . . Ballistic Gun 6 | . . 3 1 2 Ballistic Cannon . | . . . . . Launcher . | . . . . . Special Weapon . | . . . . . Impact Weapon . | . . . . . Slashing Weapon . | . . . . . Piercing Weapon . | . . . . . Special Melee Weapon . | . . . . . Unidentified Prototypes . | . . . . . Parts Lost 9 | . . . 8 1 Power 1 | . . . 1 . Propulsion 4 | . . . 3 1 Utility 2 | . . . 2 . Weapon 2 | . . . 2 . Highest Loss Streak 7 | . . . 7 1 To Critical Strikes . | . . . . . Average Slot Usage (%) 85 | . 99 99 75 76 Engine 9 | . 6 8 10 11 Core 1 | . 6 3 . . Treads 5 | . . . 7 11 Leg 23 | . 28 33 13 22 Storage 11 | . 14 11 11 11 Processor 4 | . . . 7 11 Hackware 5 | . 9 11 2 . Protection 4 | . . 10 2 . Energy Gun 4 | . 28 4 . . Ballistic Gun 15 | . . 17 19 10 Peak Build Rating 15 | 9 12 14 12 15 Average Rating 10 | 5 10 11 9 10 On Entrance 8 | . 9 12 12 11 Naked Turns . | . . . . . Heaviest Build 28 | 13 14 15 14 28 Greatest Support 30 | 20 20 30 30 23 Greatest Overweight (x) 2 | 1 . . 2 1 Average Overweight (x) . | . . . . . Largest Inventory Capacity 15 | 8 8 8 8 15 Average Capacity 8 | 6 8 8 8 10 Most Carried 10 | 1 8 8 8 10 Average Carried 6 | . 6 6 6 8 Final Capacity 15 | 8 8 8 8 15 Final Carried 8 | 1 8 8 8 7 Class Distribution -------------------- 62% | Mutant 37% | Scavenger-Mutant Dominant Class ---------------- Mutant | -10/Materials Scavenger-Mutant | -9/Materials Mutant | -9/Mines Mutant | -9/Exiles Resources | -11 -10 -9 -9 -9 ----------- Run | Yrd Mat Mat Min Exi Matter Collected 591 | 204 96 98 193 . Remotely . | . . . . . Salvage Created 784 | 15 156 361 252 . Parts 62 | 3 13 30 16 . Haulers Intercepted 1 | . . 1 . . Recyclers Shooed . | . . . . . Parts Field Recycled . | . . . . . Retrieved Matter . | . . . . . Parts Self-Destructed . | . . . . . Prevented . | . . . . . Kills | -11 -10 -9 -9 -9 ------- Run | Yrd Mat Mat Min Exi Combat Hostiles Destroyed 16 | . 2 9 5 . Guns 16 | . 2 9 5 . Classes Destroyed 9 | 1 4 3 1 . Builder 1 | . 1 . . . Tunneler 3 | 1 . . 2 . Hauler 1 | . . 1 . . Operator 1 | . 1 . . . Watcher 2 | . 1 1 . . Swarmer 4 | . . 4 . . Grunt 9 | . 2 4 3 . Brawler 2 | . . . 2 . Sentry 1 | . . 1 . . Best Kill Streak 7 | 1 2 7 3 . Combat Bots Only 7 | . 1 7 3 . Max Kills in Single Turn 1 | 1 1 1 1 . Gunslinging . | . . . . . Exploded . | . . . . . Melee . | . . . . . Uniques/NPCs Destroyed . | . . . . . Combat | -11 -10 -9 -9 -9 -------- Run | Yrd Mat Mat Min Exi Hostile Shots Fired 128 | . 10 73 23 22 Missed 36 | . 2 25 3 6 Damage Taken 1474 | . 107 592 502 273 Core 302 | . 40 195 46 21 Absorbed by Shields . | . . . . . Redirected to Shielding 36 | . . 22 14 . Core Remaining (%) 92 | 100 84 . . . Volleys Fired 74 | 4 14 33 22 1 Largest 2 | 2 2 2 2 2 Hottest 90 | 90 90 90 45 50 Shots Fired 148 | 8 28 65 44 3 Gun 148 | 8 28 65 44 3 Cannon . | . . . . . Launcher . | . . . . . Special . | . . . . . Kinetic 86 | . . 39 44 3 Thermal 31 | 4 14 13 . . Explosive . | . . . . . Electromagnetic 31 | 4 14 13 . . Robot Hit Streak 9 | 2 9 7 4 . Robot Miss Streak 6 | 4 3 2 6 3 Penetration Max . | . . . . . Secondary Targets 2 | . . 2 . . Max Gunslinging Chain 1 | . . 1 . . Shots Hit Robots 86 | 3 17 42 24 . Core Hits 39 | 1 8 19 10 1 Critical Kills . | . . . . . Critical Parts Destroyed . | . . . . . Critical Strikes 3 | . 2 1 . . Burn 3 | . 2 1 . . Melee Attacks . | . . . . . Impact . | . . . . . Slashing . | . . . . . Piercing . | . . . . . Sneak Attacks . | . . . . . Combat Hostiles . | . . . . . Follow-up Attacks . | . . . . . Damage Inflicted 1034 | 41 232 412 319 30 Guns 968 | 41 232 412 253 30 Cannons . | . . . . . Explosions 66 | . . . 66 . Melee . | . . . . . Ramming . | . . . . . Kinetic 486 | . . 203 253 30 Thermal 265 | 13 99 87 66 . Explosive . | . . . . . Electromagnetic 283 | 28 133 122 . . Impact . | . . . . . Slashing . | . . . . . Piercing . | . . . . . Highest Corruption 15 | . . 5 15 15 Average Corruption 11 | . . 4 12 15 Corruption Purged . | . . . . . Corruption Blocked . | . . . . . Effects 30 | . . 5 19 6 Message Errors 4 | . . . 2 2 Matter Fused 9 | . . 1 6 2 Heat Flow Errors 5 | . . . 4 1 Energy Discharges 3 | . . 2 1 . Data Loss (minor) 2 | . . 1 1 . Data Loss (major) 2 | . . . 2 . Misfires 2 | . . . 1 1 Alerts 1 | . . . 1 . Weapon Failures 2 | . . 1 1 . Overload Shots . | . . . . . Overflow Damage 12 | . . . 12 . Projectiles . | . . . . . Explosions 12 | . . . 12 . Melee . | . . . . . Knockbacks . | . . . . . Impact . | . . . . . Kinetic . | . . . . . Secondary . | . . . . . Self-Inflicted Damage 188 | . . . 188 . Shots 4 | . . . 4 . Rammed . | . . . . . Targets Rammed . | . . . . . Kicked . | . . . . . Crushed . | . . . . . Highest Temperature 261 | 42 260 261 259 211 Average Temperature 96 | 18 101 116 89 87 Received Heat Transfer 375 | . 78 147 90 60 Siege Activations . | . . . . . Robots Corrupted . | . . . . . Combat Hostiles . | . . . . . Parts Fried . | . . . . . Impact Corruptions . | . . . . . Robots Melted . | . . . . . Combat Hostiles . | . . . . . Parts Melted 3 | . 2 1 . . Heat Transferred 914 | 37 444 333 100 . Parts Sabotaged . | . . . . . Parts Stolen . | . . . . . Parts Stripped . | . . . . . Power Chain Reactions . | . . . . . Alert | -11 -10 -9 -9 -9 ------- Run | Yrd Mat Mat Min Exi Peak Influence 411 | 5 108 411 211 . Initial 82 | . 3 45 82 . Average 147 | . 44 305 65 . Maximum Alert Level 2 | . . 2 1 . Low Security (%) 67 | 100 100 14 98 . Level 1 29 | . . 77 1 . Level 2 2 | . . 7 . . Level 3 . | . . . . . Level 4 . | . . . . . Level 5 . | . . . . . High Security . | . . . . . Max Security . | . . . . . Squads Dispatched 1 | . . 1 . . Investigation . | . . . . . Extermination . | . . . . . Reinforcement 1 | . . 1 . . Assault . | . . . . . Garrison . | . . . . . Intercept . | . . . . . Searches Triggered . | . . . . . Construction Impeded . | . . . . . Haulers Reinforced . | . . . . . Active Scanning Responses . | . . . . . Cargo Convoy Interrupts . | . . . . . Stealth | -11 -10 -9 -9 -9 --------- Run | Yrd Mat Mat Min Exi Distress Signals 1 | . . 1 . . Communications Jammed . | . . . . . Distress Signals . | . . . . . Times Spotted 36 | . 4 17 5 10 Peak Tracking Total 9 | . 2 8 2 9 Tactical Retreats 3 | . . 3 . . Traps | -11 -10 -9 -9 -9 ------- Run | Yrd Mat Mat Min Exi Traps Triggered 3 | . . 3 . . Indirectly . | . . . . . Trap Hack Attempts . | . . . . . Triggered . | . . . . . Disarmed . | . . . . . Reprogrammed . | . . . . . Reused . | . . . . . Traps Extracted . | . . . . . Installed . | . . . . . Triggered . | . . . . . Machines | -11 -10 -9 -9 -9 ---------- Run | Yrd Mat Mat Min Exi Machines Disabled 4 | . . . 4 . Max in Single Turn 4 | . . . 4 . Machines Repaired . | . . . . . Machines Dismantled . | . . . . . Machines Sabotaged . | . . . . . Overloaded Fab Kills . | . . . . . Hacking | -11 -10 -9 -9 -9 --------- Run | Yrd Mat Mat Min Exi Machines Accessed 5 | . 3 1 1 . Terminals 4 | . 3 1 . . Fabricators . | . . . . . Repair Stations . | . . . . . Recycling Units . | . . . . . Scanalyzers . | . . . . . Garrison Access . | . . . . . Total Hacks 16 | . 12 3 1 . Successful 7 | . 5 1 1 . Failed 9 | . 7 2 . . Catastrophic 1 | . 1 . . . Database Lockouts . | . . . . . Manual 12 | . 9 3 . . Terminals 15 | . 12 3 . . Fabricators . | . . . . . Repair Stations . | . . . . . Recycling Units . | . . . . . Scanalyzers . | . . . . . Garrison Access . | . . . . . Terminal Hacks 3 | . 2 . 1 . Open Door 1 | . . . 1 . Terminal Index 1 | . 1 . . . Registered Prototypes 1 | . 1 . . . Fabricator Hacks . | . . . . . Repair Station Hacks . | . . . . . Recycling Unit Hacks . | . . . . . Scanalyzer . | . . . . . Garrison Access Hacks . | . . . . . Unauthorized Hacks 4 | . 3 1 . . Terminals 4 | . 3 1 . . Assimilate 1 | . . 1 . . Botnet 3 | . 3 . . . Fabricators . | . . . . . Repair Stations . | . . . . . Recycling Units . | . . . . . Scanalyzers . | . . . . . Garrison Access . | . . . . . Data Cores Recovered 1 | . 1 . . . Used 1 | . 1 . . . Hacking Detections 4 | . 3 1 . . Full Trace Events 2 | . 1 1 . . Feedback Events . | . . . . . Feedback Blocked . | . . . . . Robot Schematics Acquired . | . . . . . Robots Built . | . . . . . Authchips . | . . . . . Time . | . . . . . Total Robot Build Rating . | . . . . . Part Schematics Acquired . | . . . . . Parts Built . | . . . . . Authchips . | . . . . . Time . | . . . . . Total Part Build Rating . | . . . . . Parts Repaired . | . . . . . Time . | . . . . . Parts Recycled . | . . . . . Recycled Matter . | . . . . . Retrieved Matter . | . . . . . Retrieved Components . | . . . . . Parts Scanalyzed . | . . . . . Part Schematics Acquired . | . . . . . Parts Damaged . | . . . . . Bothacking | -11 -10 -9 -9 -9 ------------ Run | Yrd Mat Mat Min Exi Used RIF Installer . | . . . . . Robots Hacked . | . . . . . Non-combat . | . . . . . Combat . | . . . . . Robot Hacks Applied . | . . . . . Relay Couplers Released . | . . . . . Fabnet Peak Effective % . | . . . . . Robots Rewired . | . . . . . Allies Hacked . | . . . . . Hacks Repelled . | . . . . . Allies | -11 -10 -9 -9 -9 -------- Run | Yrd Mat Mat Min Exi Total Allies . | . . . . . Largest Group . | . . . . . Highest-Rated Group . | . . . . . Highest-Rated Ally . | . . . . . Total Orders . | . . . . . Ally Attacks . | . . . . . Total Damage . | . . . . . Kills . | . . . . . Allies Corrupted . | . . . . . Allies Melted . | . . . . . Intel | -11 -10 -9 -9 -9 ------- Run | Yrd Mat Mat Min Exi Robot Analysis Total . | . . . . . Derelict Logs Recovered 1 | . . . 1 . Drone Launches . | . . . . . Drone Recoveries . | . . . . . Exploration | -11 -10 -9 -9 -9 ------------- Run | Yrd Mat Mat Min Exi Turns Passed 1427 | 86 148 436 503 254 Spaces Moved 836 | 56 80 261 303 136 Core 11 | 7 . . 4 . Treads 301 | . . . 165 136 Legs 524 | 49 80 261 134 . Wheels . | . . . . . Hover . | . . . . . Flight . | . . . . . Fastest Speed 50 | 50 120 120 120 160 Average Speed 137 | 112 120 120 142 180 Slowest Speed 240 | 120 120 120 160 240 Overloaded Moves . | . . . . . Propulsion Burnouts . | . . . . . Robots Hopped . | . . . . . Cave-ins Triggered . | . . . . . Exploration Rate (%) 28 | 3 23 21 60 35 Regions Visited 4 Branch Regions 2 Pre-discovered Areas . | . . . . . Known Exits Taken 1 | . . . 1 . Unknown Exits Taken 3 | 1 1 1 . . Scrap Searched 1 | . . . 1 . Spaces Dug . | . . . . . Terrain Destroyed 22 | . . . 22 . Melee . | . . . . . Projectile . | . . . . . AOE 22 | . . . 22 . Terrain Rammed . | . . . . . Walls Destroyed . | . . . . . Machines Disabled . | . . . . . Actions | -11 -10 -9 -9 -9 --------- Run | Yrd Mat Mat Min Exi Total 982 | 67 104 329 339 143 Wait 17 | . . 13 4 . Move 832 | 55 79 260 302 136 Hop . | . . . . . Pick Up 14 | 1 5 6 2 . Fast Attach 18 | 7 2 3 5 1 Attach 10 | . 1 4 2 3 Detach 9 | . 3 3 1 2 Swap . | . . . . . Drop 8 | . . 7 1 . Fire 74 | 4 14 33 22 1 Melee . | . . . . . Ram . | . . . . . Kick . | . . . . . Crush . | . . . . . Escape Stasis . | . . . . . Rewire . | . . . . . Trap . | . . . . . Miscellaneous . | . . . . . Route ------- -11/Scrapyard -10/Materials -9/Materials -9/Mines (discovered 3 exits: *Mat x2 / *Exi) -9/Exiles History --------- Turn | Location | Event 17 | -11/Scrapyard | Discovered new exit (range 13) 87 | -11/Scrapyard | Entered Materials 226 | -10/Materials | Discovered new exit (range 5) 235 | -10/Materials | Entered another Materials area 235 | -9/Materials | Evolved 2 slots: Propulsion x1, Utility x1 304 | -9/Materials | Build established: Mutant 334 | -9/Materials | Destroyed 7 combat bots 414 | -9/Materials | Discovered new exit (range 7) 608 | -9/Materials | Build established: Scavenger-Mutant 671 | -9/Materials | Entered Mines 682 | -9/Mines | Met a Derelict who couldn't figure out how to use a Trap Extractor 760 | -9/Mines | Learned Materials emergency access door positions 773 | -9/Mines | Discovered new exit (range 6) 788 | -9/Mines | System corruption reached 10% 795 | -9/Mines | Core integrity fell below 50% 828 | -9/Mines | Lost 7 parts (1p3n2u1w) 833 | -9/Mines | Identified exit to Materials 970 | -9/Mines | Discovered exit to Materials (range 8) 1041 | -9/Mines | Deemed a non-threat by the Exiles lab entrance 1042 | -9/Mines | Discovered new exit (range 5) 1046 | -9/Mines | Identified exit to Exiles 1174 | -9/Mines | Entered Exiles 1218 | -9/Exiles | Met 8R-AWN 1238 | -9/Exiles | Met EX-HEX 1376 | -9/Exiles | Met EX-DEC 1378 | -9/Exiles | Build established: Mutant 1406 | -9/Exiles | Attacked by the Exiles 1428 | -9/Exiles | Self-destructed Last Messages --------------- 01239_ System corrupted: Matter fused (-6). 01299_ System corrupted: Heat flow error (+233). 01336_ Acquired Lrg. Storage Unit. 01370_ >&LQPCEPEM/N#UDZ5Y&X2N/YDKJ/&CH9JAW9I #H EX-DEC: Ah I see we have a visitor. One wrong move in here and I'll invert your atomic chain! QQ-9OA(z): I wish the Exiles would finish that old telephasing project they were working on, it sure would save us a lot of time when running errands. I'm not complaining though, nope, not me! I get that having only half of the bot ever arrive at its destination is tough on maintenance, and they said there likely wouldn't be any breakthroughs in the near term so they're doing FarCom instead. 01406_ System corrupted: FCS attempts to trigger Minigun. 01406_ System corrupted: Minigun misfires. 01406_ EXILES: Hostile robot within lab perimeter. Defensive protocols time, folks! 01415_ Extracted 2 energy. 01421_ System corrupted: Matter fused (-9). 01428_ Aluminum Leg destroyed. Map ----- +----------------------------------------------------+ | ??????????????????????????????####"""?"""?"??????? | | ???????????????????????????? " """ """"#????? | | ?????????????????????????? "" " ????? | | ????????????????????????? " """#???? | | ??????? ???????????????? " "#???? | | ????? ?????????????? " "##??? | | ??? ?????????????? ""###? | | ??? ?????????????? """#? | | ?? ????????????? "#? | | ?? ?????????????#""" ## | | ?" "??????????????#""" # | | ? ""??????????????#"""" | | ? "?????????????##"" | | ########??####"""" | | " ## a####""" | | """" | | " | | ?"" | | " # | | " " "" """ ""# | | """" ""## ##""" " " ""#" "## | | ?" ""#### a######""" """##"""""""##? | | ? """"##??# #????###""""###########?? | | ?"" """#??## a####???######???????????? | | ?? ""##??#! aa"!#????????????????????? | | ??" """##???#"aa@ !#????????????????????? | | ??""" ##????#" a "#????????????????????? | | ????""" #??????#!!"" "#????????????????????? | | ????? ???????########????????????????????? | | ?????#### ????????????????????????????????????? | | ????????## ????????????????????????????????????? | | ?????????# ?????????????????????????????????????? | | ?????????????????????????????????????????????????? | | ?????????????????????????????????????????????????? | | ?????????????????????????????????????????????????? | | ?????????????????????????????????????????????????? | | ?????????????????????????????????????????????????? | | ?????????????????????????????????????????????????? | | ?????????????????????????????????????????????????? | | ?????????????????????????????????????????????????? | | ?????????????????????????????????????????????????? | | ?????????????????????????????????????????????????? | | ?????????????????????????????????????????????????? | | ?????????????????????????????????????????????????? | | ?????????????????????????????????????????????????? | | ?????????????????????????????????????????????????? | | ?????????????????????????????????????????????????? | | ?????????????????????????????????????????????????? | | ?????????????????????????????????????????????????? | | ?????????????????????????????????????????????????? | +----------------------------------------------------+ Best States ------------- Heat Dissipation 28 Energy Generation 14 Energy Capacity 250 Matter Stores 300 Matter Capacity 300 Sight Range 16 Terrain Scan Range 16 Terrain Scan Density 10 Weapon Shielding 33 Evasion (%) 55 Recoil Reduction 1 Offensive Hacking 10 Item Schematics ----------------- None Robot Schematics ------------------ None Fabricated ------------ Nothing Alien Tech Used ----------------- None Achievements -------------- Quantum Hacking Challenges ------------ None Game ------ Seed GrenadeExperimentalNetwork Manual? 0 Play Time 00:13:04 Cumulative 66.0 hours Start 2024.08.13 @ 12:44:17 End 2024.08.13 @ 21:42:05 Sessions 3 Manual Loads 0 Difficulty Rogue Special Mode None Game No. 34 Rogue 26 Adventurer 8 Explorer 0 Win Type - Total 1 Types 1/0/0/0/0/0/0/0/0 Lore% 25 Gallery% 44 Achievement% 41 Wizard Run 0 Options --------- Layout 0 ASCII 0 Keyboard 1 Movement Numpad Keybinds 1 Fullscreen 1 Font 18/SmallcapsGlow Map View 76x50 Zoom Use 0% Tactical HUD 1 Map Filters NONE Filters NONE Steam 1 RUN: b25d8df6-d645-4f79-9a29-a9d681655370